bitfinex-derivatives/quotes_BTCF0:USTF0_20240905
["timestamp","ask_amount","ask_price","bid_price","bid_amount"]
[1725532417594,0.44799394,56718.0,56708.0,0.529]
[1725532417595,0.3608,56718.0,56708.0,0.529]
[1725532417893,0.44399394,56729.0,56717.0,0.090161]
[1725532418090,0.44399394,56729.0,56728.0,0.004]
[1725532418091,0.3608,56729.0,56728.0,0.004]
[1725532418295,0.3528,56729.0,56728.0,0.092144]
[1725532418498,0.00026446,56734.0,56731.0,0.088138]
[1725532418688,0.00026446,56734.0,56733.0,0.188136]
[1725532418893,0.00026446,56734.0,56733.0,0.192136]
[1725532419984,0.00026446,56734.0,56733.0,0.332136]
[1725532420588,0.00126446,56734.0,56733.0,0.332136]
[1725532421197,0.00126446,56734.0,56733.0,0.340136]
[1725532421395,0.00126446,56734.0,56733.0,0.346136]
[1725532422293,0.00026446,56734.0,56733.0,0.343136]
[1725532422796,0.00026446,56734.0,56733.0,0.702936]
[1725532423194,0.3608,56752.0,56733.0,0.6148]
[1725532423407,0.3608,56752.0,56751.0,0.004]
[1725532423996,0.448907,56752.0,56751.0,0.004]
[1725532424208,0.688907,56752.0,56751.0,0.004]
[1725532424698,0.688907,56752.0,56751.0,0.005]
[1725532424888,0.699907,56752.0,56751.0,0.006]
[1725532425200,0.699907,56752.0,56751.0,0.03125482]
[1725532425498,0.699907,56752.0,56751.0,0.006]
[1725532426613,1.228547,56752.0,56751.0,0.006]
[1725532427686,0.699907,56752.0,56751.0,0.006]
[1725532428897,0.788014,56752.0,56751.0,0.006]
[1725532430402,0.91928509,56752.0,56751.0,0.006]
[1725532431194,0.53709311,56752.0,56751.0,0.006]
[1725532432097,0.588037,56752.0,56751.0,0.334108]
[1725532432298,0.40583494,56752.0,56751.0,0.334108]
[1725532432802,0.00026446,56757.0,56756.0,0.0881]
[1725532433103,0.03402783,56757.0,56756.0,0.244]
[1725532433297,0.3608,56762.0,56756.0,0.25302609]
[1725532433487,0.3608,56762.0,56761.0,0.244]
[1725532433692,0.39482665,56762.0,56761.0,0.244]
[1725532435801,0.39782665,56762.0,56761.0,0.333093]
[1725532436300,0.003,56762.0,56761.0,0.333093]
[1725532436495,0.003,56762.0,56761.0,0.334093]
[1725532436697,0.10726605,56762.0,56761.0,0.334093]
[1725532437000,0.003,56762.0,56761.0,0.334093]
[1725532437195,0.003,56762.0,56761.0,0.35970754]
[1725532437392,0.3608,56766.0,56765.0,0.088086]
[1725532437602,0.3608,56766.0,56765.0,0.328086]
[1725532437903,0.3608,56766.0,56765.0,0.332086]
[1725532438098,0.00026446,56767.0,56766.0,0.088085]
[1725532438294,0.35006446,56771.0,56766.0,0.004]
[1725532438497,0.35006446,56771.0,56770.0,0.332079]
[1725532438798,0.35006446,56771.0,56770.0,0.33699031]
[1725532439710,0.35006446,56771.0,56770.0,0.34899031]
[1725532440003,0.00026422,56776.0,56773.0,0.088074]
[1725532440307,0.3608,56778.0,56775.0,0.004]
[1725532440498,0.088069,56776.0,56775.0,0.004]
[1725532440695,0.088071,56775.0,56774.0,0.24]
[1725532440900,0.088071,56775.0,56774.0,0.24881964]
[1725532441104,0.3608,56778.0,56774.0,0.24881964]
[1725532441298,0.6008,56783.0,56777.0,0.244]
[1725532441299,0.00026306,56780.0,56777.0,0.244]
[1725532441604,0.00026306,56780.0,56777.0,0.332067]
[1725532441904,0.00026306,56780.0,56778.0,0.0753]
[1725532442606,0.00026306,56780.0,56778.0,0.08431091]
[1725532442901,0.00026306,56780.0,56778.0,0.00901091]
[1725532442902,0.088065,56779.0,56778.0,0.00901091]
[1725532443110,0.088066,56778.0,56777.0,0.013]
[1725532443289,0.088066,56778.0,56766.0,0.092085]
[1725532443290,0.5284,56777.0,56766.0,0.004]
[1725532443495,0.776958,56770.0,56766.0,0.004]
[1725532443691,0.776958,56770.0,56766.0,0.02932587]
[1725532444503,0.776958,56770.0,56766.0,0.02532587]
[1725532444698,0.776958,56770.0,56762.0,0.00874516]
[1725532445501,0.776958,56770.0,56757.0,0.24]
[1725532445709,0.776958,56770.0,56769.0,0.00926422]
[1725532446301,0.779958,56770.0,56769.0,0.00126422]
[1725532446501,0.691879,56770.0,56769.0,0.00126422]
[1725532446898,0.698879,56770.0,56769.0,0.00226422]
[1725532447601,0.691879,56770.0,56769.0,0.00126422]
[1725532447806,0.698879,56770.0,56769.0,0.00226422]
[1725532448193,0.73290579,56770.0,56769.0,0.00226422]
[1725532448811,0.82098479,56770.0,56769.0,0.00226422]
[1725532449108,0.81798479,56770.0,56769.0,0.00126422]
[1725532449305,0.82098479,56770.0,56769.0,0.00226422]
[1725532449895,0.82098479,56770.0,56769.0,0.00126422]
[1725532450098,0.82098487,56770.0,56769.0,0.00126422]
[1725532450307,0.49290587,56770.0,56769.0,0.00126422]
[1725532450508,0.458879,56770.0,56769.0,0.32934422]
[1725532450702,0.458879,56770.0,56769.0,0.24126422]
[1725532451605,0.458879,56770.0,56769.0,0.00126422]
[1725532452206,0.56347876,56770.0,56769.0,0.00126422]
[1725532452510,0.458879,56770.0,56769.0,0.00126422]
[1725532453603,0.546958,56770.0,56769.0,0.00126422]
[1725532454015,0.458879,56770.0,56769.0,0.00126422]
[1725532455107,0.458879,56770.0,56769.0,0.24126422]
[1725532455408,0.458879,56770.0,56769.0,0.00126422]
[1725532460420,0.61524284,56770.0,56769.0,0.00126422]
[1725532461222,0.53603555,56770.0,56769.0,0.00126422]
[1725532463309,0.67509023,56770.0,56769.0,0.00126422]
[1725532463617,0.58701123,56770.0,56769.0,0.00126422]
[1725532463808,0.44795655,56770.0,56769.0,0.32934422]
[1725532464004,0.44795655,56770.0,56769.0,0.69014422]
[1725532464005,0.04402359,56770.0,56769.0,0.69014422]
[1725532464806,0.04401774,56770.0,56769.0,0.69014422]
[1725532465618,0.04401774,56770.0,56769.0,0.32934422]
[1725532466510,0.1665009,56770.0,56769.0,0.32934422]
[1725532466712,0.04401774,56770.0,56769.0,0.32934422]
[1725532466912,0.1665009,56770.0,56769.0,0.32934422]
[1725532467130,0.01,56770.0,56769.0,0.24126422]
[1725532467420,0.098079,56770.0,56769.0,0.24126422]
[1725532468011,0.098079,56770.0,56769.0,0.29397981]
[1725532468211,0.098079,56770.0,56769.0,0.24126422]
[1725532472526,0.098079,56770.0,56769.0,0.31076422]
[1725532474825,0.098079,56770.0,56765.0,0.02528815]
[1725532474826,0.088085,56766.0,56758.0,0.08791914]
[1725532475020,0.79272,56769.0,56744.0,0.02461041]
[1725532475021,0.9636,56759.0,56744.0,0.02461041]
[1725532475229,0.7236,56745.0,56741.0,0.05278328]
[1725532475428,0.088128,56738.0,56731.0,0.00092]
[1725532475627,0.088128,56738.0,56732.0,0.00888222]
[1725532475628,0.6028,56733.0,56732.0,0.00888222]
[1725532475821,0.6028,56733.0,56727.0,0.0682]
[1725532475822,0.088143,56729.0,56727.0,0.06846422]
[1725532476018,0.43998988,56728.0,56727.0,0.09384174]
[1725532476223,0.43799919,56728.0,56727.0,0.09384174]
[1725532477215,0.39483303,56728.0,56727.0,0.09384174]
[1725532477431,0.39483303,56728.0,56727.0,0.10484174]
[1725532478125,0.3608,56728.0,56727.0,0.10484174]
[1725532478326,0.10455394,56730.0,56727.0,0.34484174]
[1725532478529,0.10455394,56729.0,56727.0,0.34484174]
[1725532478726,0.10455394,56730.0,56727.0,0.34484174]
[1725532478926,0.10455394,56730.0,56729.0,0.002]
[1725532479116,0.3608,56731.0,56729.0,0.002]
[1725532479324,0.3608,56731.0,56730.0,0.002]
[1725532479833,0.448939,56731.0,56730.0,0.002]
[1725532480229,0.5543591,56731.0,56730.0,0.002]
[1725532480434,0.449939,56731.0,56730.0,0.002]
[1725532480928,0.5543591,56731.0,56730.0,0.002]
[1725532481130,0.450939,56731.0,56730.0,0.009]
[1725532481722,0.449939,56731.0,56730.0,0.009]
[1725532481924,0.449939,56731.0,56730.0,0.017]
[1725532481925,0.450939,56731.0,56730.0,0.017]
[1725532484130,0.539078,56731.0,56730.0,0.017]
[1725532484929,1.067878,56731.0,56730.0,0.017]
[1725532485124,1.667878,56731.0,56730.0,0.017]
[1725532485325,0.088144,56728.0,56727.0,0.00026422]
[1725532485635,0.779088,56728.0,56727.0,0.00026422]
[1725532485820,1.907928,56728.0,56727.0,0.00026422]
[1725532486424,1.908928,56728.0,56727.0,0.01226422]
[1725532486620,1.309928,56728.0,56727.0,0.02226422]
[1725532486820,1.909928,56728.0,56727.0,0.02226422]
[1725532487031,1.309928,56728.0,56727.0,0.02226422]
[1725532487225,1.909928,56728.0,56727.0,0.02226422]
[1725532487537,1.309928,56728.0,56727.0,0.02226422]
[1725532487835,0.781088,56728.0,56727.0,0.02226422]
[1725532488630,0.692944,56728.0,56727.0,0.02226422]
[1725532490027,0.781088,56728.0,56727.0,0.02226422]
[1725532495834,0.781088,56728.0,56727.0,2.2e-07]
[1725532495835,1.998072,56728.0,56727.0,2.2e-07]
[1725532496036,0.176334,56713.0,56707.0,0.0724]
[1725532496232,0.690967,56713.0,56707.0,0.0724]
[1725532496436,0.690967,56713.0,56712.0,0.09898095]
[1725532497926,0.450967,56713.0,56712.0,0.09898095]
[1725532498941,0.451967,56713.0,56712.0,0.09898095]
[1725532500245,0.3638,56713.0,56712.0,0.62798095]
[1725532500542,0.44922346,56718.0,56715.0,0.088164]
[1725532500744,0.44922346,56718.0,56716.0,0.328162]
[1725532500948,0.44922346,56718.0,56717.0,0.002]
[1725532501943,0.36106446,56718.0,56717.0,0.619081]
[1725532502733,0.36406446,56718.0,56717.0,0.619081]
[1725532504042,0.36406446,56718.0,56717.0,0.090161]
[1725532504436,0.36406446,56718.0,56717.0,0.002]
[1725532504633,0.53938246,56718.0,56717.0,0.002]
[1725532505847,0.53838246,56718.0,56717.0,0.003]
[1725532507339,0.53838246,56718.0,56717.0,0.05578426]
[1725532507550,0.53838246,56718.0,56717.0,0.003]
[1725532508145,0.45022346,56718.0,56717.0,0.003]
[1725532508458,0.45022346,56718.0,56717.0,0.07333854]
[1725532508656,0.44922346,56718.0,56717.0,0.07333854]
[1725532509154,0.44922346,56718.0,56717.0,0.003]
[1725532509451,0.44922346,56718.0,56717.0,0.07338661]
[1725532510047,0.44922346,56718.0,56717.0,0.003]
[1725532511354,0.08842346,56718.0,56717.0,0.003]
[1725532517262,0.08842346,56718.0,56717.0,0.243]
[1725532517949,0.00026446,56718.0,56717.0,0.85989214]
[1725532518144,0.00026446,56718.0,56717.0,0.860081]
[1725532518346,0.00026446,56718.0,56717.0,0.85989214]
[1725532518551,0.08842346,56718.0,56717.0,0.85989214]
[1725532518854,0.08842346,56718.0,56717.0,0.77192]
[1725532519161,0.08842346,56718.0,56717.0,0.33097214]
[1725532519545,0.08842346,56718.0,56717.0,0.243]
[1725532524164,0.08842346,56718.0,56717.0,0.31345509]
[1725532525754,0.00026446,56718.0,56717.0,0.243]
[1725532525958,0.069547,56725.0,56717.0,1.59421752]
[1725532526158,0.430347,56726.0,56724.0,0.242]
[1725532526360,0.518494,56726.0,56725.0,0.0757]
[1725532526668,0.518494,56726.0,56725.0,0.0737]
[1725532526669,0.448947,56726.0,56725.0,0.0737]
[1725532527270,0.53588075,56726.0,56725.0,0.0737]
[1725532527562,0.51915,56726.0,56725.0,0.0737]
[1725532527766,0.51915,56726.0,56725.0,0.1265311]
[1725532527962,0.448947,56726.0,56725.0,0.1265311]
[1725532528163,0.448947,56726.0,56725.0,0.0737]
[1725532528364,0.51913943,56726.0,56725.0,0.0737]
[1725532528564,0.51913943,56726.0,56725.0,0.1265311]
[1725532529159,0.448947,56726.0,56725.0,0.1265311]
[1725532529370,0.452947,56726.0,56725.0,0.1265311]
[1725532529759,0.460947,56726.0,56725.0,0.1265311]
[1725532529961,0.460947,56726.0,56725.0,0.15179427]
[1725532530261,0.452947,56726.0,56725.0,0.09896317]
[1725532530468,0.453947,56726.0,56725.0,0.09896317]
[1725532530860,0.450947,56726.0,56725.0,0.09896317]
[1725532531259,0.811747,56726.0,56725.0,0.09896317]
[1725532531754,0.090147,56726.0,56725.0,0.09896317]
[1725532531960,0.450947,56726.0,56725.0,0.09896317]
[1725532532156,0.088147,56726.0,56725.0,0.09896317]
[1725532532357,0.449947,56726.0,56725.0,0.09896317]
[1725532533373,0.52008946,56726.0,56725.0,0.09896317]
[1725532535265,0.43194246,56726.0,56725.0,0.42711117]
[1725532535472,0.3618,56726.0,56725.0,0.47994227]
[1725532535665,0.3618,56726.0,56725.0,0.42711117]
[1725532537766,0.3608,56726.0,56725.0,0.42711117]
[1725532539280,0.3608,56726.0,56725.0,0.42811117]
[1725532541983,0.00026446,56731.0,56730.0,0.088141]
[1725532542277,0.36106446,56731.0,56730.0,0.14294943]
[1725532542475,0.36106446,56731.0,56730.0,0.05480843]
[1725532542675,0.36106446,56731.0,56730.0,0.002]
[1725532542874,0.44920346,56731.0,56730.0,0.002]
[1725532543278,0.45320346,56731.0,56730.0,0.002]
[1725532544482,0.45720346,56731.0,56730.0,0.002]
[1725532545871,0.45720346,56731.0,56730.0,0.05480843]
[1725532548290,0.45720346,56731.0,56730.0,0.002]
[1725532549178,0.45720346,56731.0,56730.0,0.05480843]
[1725532549687,0.54413721,56731.0,56730.0,0.002]
[1725532550876,0.45720346,56731.0,56730.0,0.002]
[1725532553185,0.09640346,56731.0,56730.0,0.002]
[1725532553391,0.45720346,56731.0,56730.0,0.002]
[1725532554085,0.45720346,56731.0,56730.0,0.242]
[1725532556188,0.45720346,56731.0,56730.0,0.102]
[1725532556978,0.09640346,56731.0,56730.0,0.102]
[1725532557186,0.45720346,56731.0,56730.0,0.102]
[1725532557580,0.45720346,56731.0,56730.0,0.002]
[1725532557781,0.73293268,56731.0,56730.0,0.002]
[1725532558182,0.54534246,56731.0,56730.0,0.002]
[1725532558379,0.64534246,56731.0,56730.0,0.002]
[1725532558588,0.73292843,56731.0,56730.0,0.002]
[1725532559683,0.45720346,56731.0,56730.0,0.15483478]
[1725532559890,0.45720346,56731.0,56730.0,0.05483478]
[1725532561497,0.69720346,56731.0,56730.0,0.05483478]
[1725532561797,0.78534246,56731.0,56730.0,0.05483478]
[1725532563392,0.78534246,56731.0,56730.0,0.002]
[1725532564994,0.36906446,56731.0,56730.0,0.242]
[1725532565201,0.43920441,56731.0,56730.0,0.38299032]
[1725532565498,0.43920441,56731.0,56730.0,0.330141]
[1725532565688,0.36906446,56731.0,56730.0,0.330141]
[1725532566898,0.36906446,56731.0,56730.0,0.40059696]
[1725532569988,0.00826446,56731.0,56730.0,0.40059696]
[1725532570302,0.00826446,56731.0,56730.0,0.330141]
[1725532571507,0.00120652,56731.0,56730.0,1.458941]
[1725532571693,0.3608,56738.0,56730.0,1.59323372]
[1725532571888,0.3608,56738.0,56737.0,0.05282758]
[1725532572094,0.3608,56738.0,56737.0,0.002]
[1725532572297,0.3608,56738.0,56737.0,0.1498]
[1725532572593,0.3608,56738.0,56737.0,0.23793]
[1725532572800,0.3648,56738.0,56737.0,0.23793]
[1725532573001,0.3688,56738.0,56737.0,0.23793]
[1725532573592,0.3728,56738.0,56737.0,0.23793]
[1725532573798,0.3848,56738.0,56737.0,0.23793]
[1725532575092,0.024,56738.0,56737.0,0.23793]
[1725532575406,0.11162115,56738.0,56737.0,0.23793]
[1725532576095,0.11162115,56738.0,56737.0,0.26368878]
[1725532576605,0.08760568,56741.0,56737.0,0.17555878]
[1725532576806,0.1044201,56746.0,56745.0,0.088117]
[1725532577003,0.1925321,56749.0,56745.0,0.090117]
[1725532577205,0.1925321,56749.0,56748.0,0.242]
[1725532577206,0.088112,56749.0,56748.0,0.242]
[1725532577400,0.088112,56749.0,56748.0,0.24]
[1725532577596,0.088112,56749.0,56748.0,0.24869746]
[1725532578704,0.3608,56751.0,56748.0,0.24869746]
[1725532578896,0.088111,56750.0,56748.0,0.24869746]
[1725532579097,0.3608,56751.0,56750.0,0.08811]
[1725532579303,0.03119251,56763.0,56755.0,0.088101]
[1725532579304,0.1044201,56757.0,56755.0,0.088101]
[1725532579502,0.435,56762.0,56755.0,0.088101]
[1725532579503,0.1925141,56760.0,56756.0,0.242]
[1725532579704,0.088094,56760.0,56759.0,0.242]
[1725532579909,0.088094,56760.0,56759.0,0.24]
[1725532580102,0.50499234,56762.0,56756.0,0.002]
[1725532580304,0.690899,56757.0,56756.0,0.002]
[1725532580702,0.703899,56757.0,56756.0,0.002]
[1725532581903,0.703899,56757.0,56756.0,0.02691587]
[1725532582605,0.703899,56757.0,56756.0,0.02791587]
[1725532583009,0.690899,56757.0,56756.0,0.02891587]
[1725532583207,0.690899,56757.0,56756.0,0.02791587]
[1725532583407,0.450899,56757.0,56756.0,0.02891587]
[1725532583908,0.464899,56757.0,56756.0,0.02891587]
[1725532584807,0.224899,56757.0,56756.0,0.26891587]
[1725532586508,0.464899,56757.0,56756.0,0.02891587]
[1725532587712,0.59615353,56757.0,56756.0,0.02891587]
[1725532588105,0.35615353,56757.0,56756.0,0.02891587]
[1725532589106,0.54715194,56757.0,56756.0,0.02891587]
[1725532589506,0.78715194,56757.0,56756.0,0.02891587]
[1725532589814,0.78715194,56757.0,56752.0,1e-06]
[1725532589815,0.264315,56753.0,56752.0,1e-06]
[1725532590007,0.176232,56746.0,56740.0,0.002]
[1725532590208,0.54948653,56746.0,56745.0,0.0265491]
[1725532590406,0.61067638,56746.0,56745.0,0.002]
[1725532590809,0.088117,56745.0,56737.0,0.328129]
[1725532591004,0.28459165,56745.0,56737.0,0.328129]
[1725532591411,0.28459165,56745.0,56744.0,0.02482115]
[1725532591610,0.28459165,56745.0,56744.0,0.00026446]
[1725532592318,0.2214018,56745.0,56744.0,0.00026446]
[1725532592909,0.2314018,56745.0,56744.0,0.00126446]
[1725532594018,0.2404018,56745.0,56744.0,0.00226446]
[1725532594610,0.43262304,56745.0,56744.0,0.00226446]
[1725532594811,0.109117,56745.0,56744.0,0.02774958]
[1725532595321,0.109117,56745.0,56744.0,0.00226446]
[1725532595621,0.109117,56745.0,56744.0,0.01092254]
[1725532595819,0.109117,56745.0,56744.0,0.00226446]
[1725532596222,0.109117,56745.0,56744.0,0.01093598]
[1725532597209,0.109117,56745.0,56744.0,0.00226446]
[1725532597410,0.265734,56745.0,56744.0,0.00226446]
[1725532601521,0.197234,56745.0,56744.0,0.00226446]
[1725532602523,0.109117,56745.0,56744.0,0.09924873]
[1725532602726,0.109117,56745.0,56744.0,0.09038346]
[1725532603019,0.099117,56745.0,56744.0,0.08938346]
[1725532603228,0.100117,56745.0,56744.0,0.09701768]
[1725532603922,0.095117,56745.0,56744.0,0.01089868]
[1725532605219,0.090117,56745.0,56744.0,0.01289868]
[1725532606018,0.090117,56745.0,56744.0,0.01089868]
[1725532606627,0.090117,56745.0,56744.0,0.00889868]
[1725532606824,0.090117,56745.0,56744.0,0.00989868]
[1725532608231,0.178234,56745.0,56744.0,0.00126446]
[1725532608435,0.090117,56745.0,56744.0,0.00126446]
[1725532608916,0.090117,56745.0,56744.0,0.14426446]
[1725532609429,0.091117,56745.0,56744.0,0.14326446]
[1725532609840,0.12515743,56745.0,56744.0,0.14326446]
[1725532610818,0.12515743,56745.0,56744.0,0.14426446]
[1725532611019,0.12515746,56745.0,56744.0,0.14426446]
[1725532612534,0.12515746,56745.0,56744.0,0.14326446]
[1725532613027,0.12615746,56745.0,56744.0,0.14326446]
[1725532613237,0.12715746,56745.0,56744.0,0.14326446]
[1725532614323,0.12915746,56745.0,56744.0,0.14326446]
[1725532614823,0.12715746,56745.0,56744.0,0.14326446]
[1725532615020,0.21827446,56745.0,56744.0,0.14326446]
[1725532616626,0.21827446,56745.0,56744.0,0.00026446]
[1725532617934,0.184234,56745.0,56744.0,0.00026446]
[1725532619434,0.096117,56745.0,56744.0,0.00026446]
[1725532619733,0.096117,56745.0,56744.0,0.00904365]
[1725532619937,0.096117,56745.0,56744.0,0.00026446]
[1725532620526,0.096117,56745.0,56744.0,0.00928262]
[1725532621024,0.008,56745.0,56744.0,0.24928262]
[1725532621223,0.008,56745.0,56744.0,0.7686384]
[1725532621429,0.008,56745.0,56744.0,0.69820162]
[1725532621430,0.005,56745.0,56744.0,0.69820162]
[1725532621630,0.007,56745.0,56744.0,0.69820162]
[1725532622325,0.005,56745.0,56744.0,0.69820162]
[1725532622526,0.003,56745.0,56744.0,0.69820162]
[1725532622726,0.003,56745.0,56744.0,1.82688162]
[1725532622927,0.088107,56752.0,56748.0,0.088113]
[1725532623122,0.328107,56752.0,56751.0,0.05483177]
[1725532623340,0.328107,56752.0,56751.0,0.002]
[1725532623628,0.328107,56752.0,56751.0,0.05483177]
[1725532624232,0.328107,56752.0,56751.0,0.002]
[1725532624733,0.332107,56752.0,56751.0,0.002]
[1725532624937,0.40928482,56752.0,56751.0,0.002]
[1725532625435,0.37013995,56752.0,56751.0,0.003]
[1725532625830,0.37413995,56752.0,56751.0,0.003]
[1725532626043,0.41728485,56752.0,56751.0,0.003]
[1725532626234,0.37413995,56752.0,56751.0,0.003]
[1725532626538,0.49986888,56752.0,56751.0,0.004]
[1725532628436,0.4202847,56752.0,56751.0,0.004]
[1725532628630,0.0921777,56752.0,56751.0,0.02459698]
[1725532628833,0.0921777,56752.0,56751.0,1.13264]
[1725532628834,0.03403181,56752.0,56751.0,1.13264]
[1725532629028,0.09518391,56756.0,56751.0,1.37264]
[1725532629227,0.425194,56761.0,56758.0,0.088096]
[1725532629440,0.096094,56761.0,56760.0,0.3628]
[1725532629730,0.13923161,56761.0,56760.0,0.3628]
[1725532629935,0.13923161,56761.0,56760.0,0.4329]
[1725532630135,0.13923161,56761.0,56760.0,0.5036]
[1725532630331,0.05113761,56761.0,56760.0,0.591694]
[1725532630533,0.008,56761.0,56760.0,0.591694]
[1725532631137,0.017,56761.0,56760.0,0.592694]
[1725532631927,0.024,56761.0,56760.0,0.593694]
[1725532633044,0.024,56761.0,56760.0,0.5056]
[1725532633231,0.112093,56761.0,56760.0,0.5056]
[1725532633560,0.352093,56761.0,56760.0,0.1448]
[1725532634540,0.440186,56761.0,56760.0,0.002]
[1725532636134,0.528279,56761.0,56760.0,0.002]
[1725532636335,0.2643,56756.0,56755.0,0.002]
[1725532636531,0.8651,56756.0,56755.0,0.002]
[1725532636733,0.8671,56756.0,56755.0,0.002]
[1725532637631,0.8741,56756.0,56755.0,0.003]
[1725532639432,0.8781,56756.0,56755.0,0.004]
[1725532640233,1.4067,56756.0,56755.0,0.004]
[1725532640435,0.17622,56750.0,56749.0,0.02043087]
[1725532640634,0.176226,56748.0,56744.0,0.00928262]
[1725532640833,0.178226,56748.0,56744.0,0.00928262]
[1725532641036,0.176226,56748.0,56744.0,0.00928262]
[1725532641435,0.176226,56748.0,56747.0,0.38129415]
[1725532642943,0.178226,56748.0,56747.0,0.38129415]
[1725532643139,0.090113,56748.0,56747.0,0.38129415]
[1725532643546,0.093113,56748.0,56747.0,0.38129415]
[1725532644046,0.093113,56748.0,56747.0,0.46940815]
[1725532644348,0.005,56748.0,56747.0,0.46940815]
[1725532645344,0.005,56748.0,56747.0,0.38129415]
[1725532646442,0.005,56748.0,56747.0,0.46940815]
[1725532647038,0.01,56760.0,56748.0,0.52864]
[1725532647250,0.01,56760.0,56757.0,0.3628]
[1725532647251,0.088096,56759.0,56757.0,0.3628]
[1725532648247,0.3331,56758.0,56757.0,0.3628]
[1725532649238,0.3331,56758.0,56757.0,0.3638]
[1725532649239,0.3361,56758.0,56757.0,0.3638]
[1725532649841,0.424197,56758.0,56757.0,0.3638]
[1725532650046,0.420197,56758.0,56757.0,0.3638]
[1725532650247,0.426197,56758.0,56757.0,0.3648]
[1725532651745,0.426197,56758.0,56757.0,0.38476217]
[1725532652152,0.097097,56758.0,56757.0,0.38476217]
[1725532656748,0.097097,56758.0,56757.0,0.62476217]
[1725532660064,0.009,56758.0,56757.0,0.71286117]
[1725532660865,0.01,56760.0,56757.0,0.47986117]
[1725532661061,0.098095,56760.0,56759.0,0.002]
[1725532662856,0.098095,56760.0,56759.0,0.0741]
[1725532663050,0.13212306,56760.0,56759.0,0.0741]
[1725532663253,0.13212306,56760.0,56759.0,0.0771]
[1725532663958,0.13212306,56760.0,56759.0,0.0791]
[1725532664559,0.13212306,56760.0,56759.0,0.0771]
[1725532664862,0.13212308,56760.0,56759.0,0.0791]
[1725532665166,0.13212308,56760.0,56759.0,0.0761]
[1725532665349,0.04402808,56760.0,56759.0,0.167196]
[1725532667160,0.01,56760.0,56759.0,0.167196]
[1725532667353,0.11515968,56760.0,56759.0,0.167196]
[1725532668359,0.01,56760.0,56759.0,0.167196]
[1725532668552,0.06288623,56761.0,56760.0,0.088094]
[1725532668752,0.4692218,56773.0,56760.0,0.232894]
[1725532668753,0.53978157,56773.0,56760.0,0.232894]
[1725532669054,0.03402363,56772.0,56768.0,0.088081]
[1725532669253,0.03402363,56771.0,56769.0,0.0709]
[1725532669552,0.03402363,56770.0,56769.0,0.15898]
[1725532669864,0.088068,56777.0,56771.0,0.088077]
[1725532670064,0.088068,56777.0,56776.0,0.24]
[1725532670361,0.088068,56777.0,56776.0,0.244]
[1725532671156,0.176125,56781.0,56776.0,0.244]
[1725532671357,0.088062,56781.0,56780.0,0.244]
[1725532672665,0.088062,56781.0,56780.0,0.004]
[1725532674362,0.092062,56781.0,56780.0,0.004]
[1725532674561,0.092062,56781.0,56780.0,0.6048]
[1725532674562,0.004,56781.0,56780.0,0.6048]
[1725532676068,0.004,56781.0,56780.0,0.6118]
[1725532676657,0.004,56781.0,56780.0,0.6048]
[1725532676856,0.004,56781.0,56780.0,0.6108]
[1725532677263,0.088061,56782.0,56780.0,0.6168]
[1725532677464,0.088061,56782.0,56781.0,0.004]
[1725532678054,0.1651987,56782.0,56781.0,0.004]
[1725532678767,0.2532597,56782.0,56781.0,0.004]
[1725532678962,0.30731358,56782.0,56781.0,0.007]
[1725532679167,0.39537458,56782.0,56781.0,0.007]
[1725532679352,0.92373458,56782.0,56781.0,0.007]
[1725532679556,0.92375843,56782.0,56781.0,0.004]
[1725532679760,1.17915177,56782.0,56781.0,0.005]
[1725532679968,1.17915177,56782.0,56781.0,0.008]
[1725532680465,0.65079177,56782.0,56781.0,0.008]
[1725532680662,1.11897967,56782.0,56781.0,0.006]
[1725532680871,0.92675843,56782.0,56781.0,0.006]
[1725532681670,0.39839843,56782.0,56781.0,0.006]
[1725532681869,0.46156851,56782.0,56781.0,0.006]
[1725532682067,0.46156851,56782.0,56781.0,0.00540001]
[1725532682366,1.58992851,56782.0,56781.0,0.00540001]
[1725532685062,1.395543,56782.0,56781.0,0.00540001]
[1725532685575,0.795543,56782.0,56781.0,0.00540001]
[1725532685879,1.395543,56782.0,56781.0,0.00540001]
[1725532686673,0.264225,56772.0,56771.0,0.00026422]
[1725532686978,0.865025,56772.0,56771.0,0.00026422]
[1725532687763,0.865025,56772.0,56771.0,0.00126422]
[1725532688464,0.865025,56772.0,56771.0,0.00226422]
[1725532689360,0.77695,56772.0,56771.0,0.00226422]
[1725532689573,0.452875,56772.0,56771.0,0.08834122]
[1725532689769,0.453875,56772.0,56771.0,0.00026422]
[1725532690062,0.005,56772.0,56771.0,0.76064122]
[1725532690369,0.005,56772.0,56771.0,1.88908122]
[1725532690964,0.001,56772.0,56771.0,1.88908122]
[1725532691470,0.088063,56780.0,56776.0,0.088068]
[1725532691667,0.088063,56780.0,56779.0,0.6048]
[1725532692177,0.088058,56784.0,56779.0,0.6048]
[1725532692471,0.088059,56783.0,56781.0,0.004]
[1725532693564,0.42116,56782.0,56781.0,0.004]
[1725532693770,0.09206,56782.0,56781.0,0.004]
[1725532694472,0.09206,56782.0,56781.0,0.008]
[1725532695583,0.09206,56782.0,56781.0,0.013]
[1725532696062,0.09206,56782.0,56781.0,0.007]
[1725532696269,0.09206,56782.0,56781.0,0.011]
[1725532697875,0.09206,56782.0,56781.0,0.03159345]
[1725532698181,0.09206,56782.0,56781.0,0.011]
[1725532700079,0.16919867,56782.0,56781.0,0.011]
[1725532700879,0.40919867,56782.0,56781.0,0.011]
[1725532701181,0.63751289,56782.0,56781.0,0.012]
[1725532702079,0.16919867,56782.0,56781.0,0.007]
[1725532702278,0.23230194,56782.0,56781.0,0.008]
[1725532702474,0.30944061,56782.0,56781.0,0.008]
[1725532702883,0.30944061,56782.0,56781.0,0.004]
[1725532703083,0.30944061,56782.0,56781.0,0.0769]
[1725532703878,0.30944061,56782.0,56781.0,0.0789]
[1725532704176,0.30947147,56782.0,56781.0,0.0789]